[Event "Titled Tuesday Blitz January 03 Early 2023"]
[White "Martin, Lewis"]
[Black "Manukyan, Artyom"]
[WhiteFideId "410551"]
[BlackFideId "13305786"]
[WhiteElo "2135"]
[BlackElo "2110"]
[Result "0-1"]
[Round "03"]
[TimeControl "180+2"]
[Date "2023.01.03"]
[WhiteClock "0:00:12"]
[BlackClock "0:00:19"]

1. e4 {[%clk 0:03:00]}  c5 {[%clk 0:02:59]} 2. Nf3 {[%clk 0:03:00]}  d6 {[%clk 0:02:59]} 3. d4 {[%clk 0:03:01]}  cxd4 {[%clk 0:03:00]} 4. Nxd4 {[%clk 0:03:01]}  Nf6 {[%clk 0:03:00]} 5. Nc3 {[%clk 0:03:02]}  g6 {[%clk 0:03:01]} 6. g3 {[%clk 0:03:00]}  Bg7 {[%clk 0:03:00]} 7. Bg2 {[%clk 0:03:00]}  Nc6 {[%clk 0:03:01]} 8. Nde2 {[%clk 0:02:59]}  O-O {[%clk 0:03:01]} 9. O-O {[%clk 0:02:59]}  Rb8 {[%clk 0:03:01]} 10. h3 {[%clk 0:02:48]}  b5 {[%clk 0:03:01]} 11. a3 {[%clk 0:02:48]}  a5 {[%clk 0:03:00]} 12. Be3 {[%clk 0:02:44]}  Be6 {[%clk 0:02:58]} 13. Qd2 {[%clk 0:02:40]}  Ne5 {[%clk 0:02:52]} 14. b3 {[%clk 0:02:37]}  Nc6 {[%clk 0:02:44]} 15. Rac1 {[%clk 0:02:26]}  Qd7 {[%clk 0:02:39]} 16. g4 {[%clk 0:02:21]}  Rfc8 {[%clk 0:02:38]} 17. f4 {[%clk 0:02:19]}  b4 {[%clk 0:02:34]} 18. axb4 {[%clk 0:02:15]}  axb4 {[%clk 0:02:34]} 19. Na4 {[%clk 0:02:14]}  Qc7 {[%clk 0:02:28]} 20. f5 {[%clk 0:02:10]}  Bd7 {[%clk 0:02:28]} 21. g5 {[%clk 0:02:10]}  Nh5 {[%clk 0:02:28]} 22. Bf3 {[%clk 0:02:01]}  Ne5 {[%clk 0:02:26]} 23. Bxh5 {[%clk 0:01:59]}  gxh5 {[%clk 0:02:27]} 24. Nf4 {[%clk 0:01:58]}  h4 {[%clk 0:02:22]} 25. Nd5 {[%clk 0:01:50]}  Qd8 {[%clk 0:02:20]} 26. f6 {[%clk 0:01:49]}  exf6 {[%clk 0:02:19]} 27. gxf6 {[%clk 0:01:49]}  Bf8 {[%clk 0:02:19]} 28. Qg2+ {[%clk 0:01:44]}  Ng6 {[%clk 0:02:17]} 29. Nab6 {[%clk 0:01:37]}  Rc6 {[%clk 0:02:12]} 30. Nc4 {[%clk 0:01:14]}  Be6 {[%clk 0:02:08]} 31. Bg5 {[%clk 0:01:05]}  Qd7 {[%clk 0:02:05]} 32. Rf3 {[%clk 0:00:58]}  Re8 {[%clk 0:01:59]} 33. Nce3 {[%clk 0:00:54]}  Qc8 {[%clk 0:01:53]} 34. Bxh4 {[%clk 0:00:49]}  Bxd5 {[%clk 0:01:53]} 35. Nxd5 {[%clk 0:00:41]}  Rxe4 {[%clk 0:01:53]} 36. Bf2 {[%clk 0:00:35]}  Qe6 {[%clk 0:01:49]} 37. Nf4 {[%clk 0:00:29]}  Qe5 {[%clk 0:01:35]} 38. Nd3 {[%clk 0:00:25]}  Qe8 {[%clk 0:01:22]} 39. h4 {[%clk 0:00:25]}  h5 {[%clk 0:01:14]} 40. Rg3 {[%clk 0:00:21]}  Bh6 {[%clk 0:01:08]} 41. Nxb4 {[%clk 0:00:18]}  Rxb4 {[%clk 0:01:01]} 42. Re1 {[%clk 0:00:18]}  Qf8 {[%clk 0:00:34]} 43. Rxg6+ {[%clk 0:00:17]}  fxg6 {[%clk 0:00:35]} 44. Qxg6+ {[%clk 0:00:17]}  Kh8 {[%clk 0:00:36]} 45. Qxh5 {[%clk 0:00:16]}  Rc8 {[%clk 0:00:29]} 46. Be3 {[%clk 0:00:16]}  Kh7 {[%clk 0:00:18]} 47. Qf5+ {[%clk 0:00:15]}  Kh8 {[%clk 0:00:17]} 48. Qh5 {[%clk 0:00:14]}  Kh7 {[%clk 0:00:17]} 49. Kh2 {[%clk 0:00:13]}  Qxf6 {[%clk 0:00:16]} 50. Rg1 {[%clk 0:00:12]}  Qe5+ {[%clk 0:00:16]} 51. Qxe5 {[%clk 0:00:12]}  dxe5 {[%clk 0:00:17]} 52. Bxh6 {[%clk 0:00:12]}  Kxh6 {[%clk 0:00:17]} 53. Rg2 {[%clk 0:00:12]}  Rxh4+ {[%clk 0:00:18]} 54. Kg3 {[%clk 0:00:12]}  Rh5 {[%clk 0:00:18]} 55. Kf3 {[%clk 0:00:12]}  Rf5+ {[%clk 0:00:19]} 0-1


[Site "https://www.chess.com"]

[Event "Titled Tuesday Blitz January 03 Early 2023"]
[White "Ezat, Mohamed"]
[Black "Barbot, Pierre"]
[WhiteFideId "10600906"]
[BlackFideId "663727"]
[WhiteElo "2402"]
[BlackElo "2458"]
[Result "0-1"]
[Round "03"]
[TimeControl "180+2"]
[Date "2023.01.03"]
[WhiteClock "0:00:10"]
[BlackClock "0:00:02"]

1. d4 {[%clk 0:03:00]}  Nf6 {[%clk 0:03:00]} 2. c4 {[%clk 0:03:01]}  g6 {[%clk 0:03:00]} 3. Nc3 {[%clk 0:03:01]}  d5 {[%clk 0:03:00]} 4. Bf4 {[%clk 0:03:00]}  Bg7 {[%clk 0:02:58]} 5. e3 {[%clk 0:02:58]}  c5 {[%clk 0:02:52]} 6. dxc5 {[%clk 0:02:56]}  Qa5 {[%clk 0:02:46]} 7. Rc1 {[%clk 0:02:51]}  Ne4 {[%clk 0:02:01]} 8. Ne2 {[%clk 0:02:49]}  Na6 {[%clk 0:01:40]} 9. cxd5 {[%clk 0:02:07]}  Naxc5 {[%clk 0:01:29]} 10. Nd4 {[%clk 0:02:01]}  Nxc3 {[%clk 0:01:15]} 11. bxc3 {[%clk 0:01:49]}  O-O {[%clk 0:01:03]} 12. Bc4 {[%clk 0:01:45]}  Bd7 {[%clk 0:00:36]} 13. O-O {[%clk 0:01:37]}  Rac8 {[%clk 0:00:36]} 14. Nb3 {[%clk 0:01:29]}  Nxb3 {[%clk 0:00:31]} 15. Bxb3 {[%clk 0:01:17]}  Rxc3 {[%clk 0:00:27]} 16. Rxc3 {[%clk 0:01:15]}  Qxc3 {[%clk 0:00:26]} 17. Bg5 {[%clk 0:01:05]}  Bf6 {[%clk 0:00:17]} 18. Bxf6 {[%clk 0:00:59]}  Qxf6 {[%clk 0:00:18]} 19. Qc1 {[%clk 0:00:55]}  Rc8 {[%clk 0:00:18]} 20. Qa3 {[%clk 0:00:55]}  a6 {[%clk 0:00:12]} 21. Qb4 {[%clk 0:00:54]}  b5 {[%clk 0:00:10]} 22. h3 {[%clk 0:00:49]}  Bf5 {[%clk 0:00:09]} 23. Rd1 {[%clk 0:00:37]}  Qd6 {[%clk 0:00:09]} 24. Qd4 {[%clk 0:00:32]}  Bd7 {[%clk 0:00:05]} 25. e4 {[%clk 0:00:29]}  a5 {[%clk 0:00:05]} 26. e5 {[%clk 0:00:28]}  Qc5 {[%clk 0:00:05]} 27. Qxc5 {[%clk 0:00:15]}  Rxc5 {[%clk 0:00:06]} 28. e6 {[%clk 0:00:16]}  fxe6 {[%clk 0:00:05]} 29. d6 {[%clk 0:00:10]}  exd6 {[%clk 0:00:02]} 30. Rxd6 {[%clk 0:00:10]}  Rc7 {[%clk 0:00:02]} 0-1


[Site "https://www.chess.com"]

[Event "Titled Tuesday Blitz January 03 Early 2023"]
[White "Kuchava, Ana"]
[Black "Koutlas, Nikolaos"]
[WhiteFideId "13605348"]
[BlackFideId "25827138"]
[WhiteElo "2101"]
[BlackElo "2341"]
[Result "0-1"]
[Round "03"]
[TimeControl "180+2"]
[Date "2023.01.03"]
[WhiteClock "0:00:01"]
[BlackClock "0:00:15"]

1. d4 {[%clk 0:03:00]}  a6 {[%clk 0:02:57]} 2. e4 {[%clk 0:03:00]}  g6 {[%clk 0:02:55]} 3. c4 {[%clk 0:02:57]}  Bg7 {[%clk 0:02:54]} 4. Nc3 {[%clk 0:02:56]}  b5 {[%clk 0:02:51]} 5. cxb5 {[%clk 0:02:55]}  axb5 {[%clk 0:02:52]} 6. Bxb5 {[%clk 0:02:54]}  Bb7 {[%clk 0:02:50]} 7. Nf3 {[%clk 0:02:52]}  Nf6 {[%clk 0:02:50]} 8. Bd3 {[%clk 0:02:51]}  d6 {[%clk 0:02:49]} 9. O-O {[%clk 0:02:51]}  O-O {[%clk 0:02:49]} 10. Re1 {[%clk 0:02:51]}  Nfd7 {[%clk 0:02:45]} 11. Bf4 {[%clk 0:02:46]}  c5 {[%clk 0:02:44]} 12. d5 {[%clk 0:02:41]}  Na6 {[%clk 0:02:39]} 13. a3 {[%clk 0:02:32]}  Qb6 {[%clk 0:02:27]} 14. Qc2 {[%clk 0:02:28]}  Rfb8 {[%clk 0:02:18]} 15. Rab1 {[%clk 0:02:25]}  Qa5 {[%clk 0:02:14]} 16. e5 {[%clk 0:01:30]}  c4 {[%clk 0:01:18]} 17. Bxc4 {[%clk 0:01:08]}  Rc8 {[%clk 0:01:18]} 18. Qe2 {[%clk 0:01:01]}  Nb6 {[%clk 0:01:15]} 19. Ba2 {[%clk 0:00:47]}  Nxd5 {[%clk 0:00:56]} 20. Nxd5 {[%clk 0:00:44]}  Bxd5 {[%clk 0:00:56]} 21. Bxd5 {[%clk 0:00:45]}  Qxd5 {[%clk 0:00:56]} 22. exd6 {[%clk 0:00:45]}  exd6 {[%clk 0:00:55]} 23. Red1 {[%clk 0:00:41]}  Qa2 {[%clk 0:00:53]} 24. Bxd6 {[%clk 0:00:40]}  Rc6 {[%clk 0:00:41]} 25. Be5 {[%clk 0:00:34]}  Re6 {[%clk 0:00:32]} 26. Qe4 {[%clk 0:00:24]}  Rae8 {[%clk 0:00:29]} 27. Qa4 {[%clk 0:00:09]}  Nc5 {[%clk 0:00:23]} 28. Qa5 {[%clk 0:00:09]}  Nb3 {[%clk 0:00:18]} 29. Qd5 {[%clk 0:00:07]}  Bxe5 {[%clk 0:00:17]} 30. Nxe5 {[%clk 0:00:07]}  Rxe5 {[%clk 0:00:18]} 31. Qc4 {[%clk 0:00:07]}  Qxb1 {[%clk 0:00:15]} 32. Rxb1 {[%clk 0:00:06]}  Nd2 {[%clk 0:00:15]} 33. Qa4 {[%clk 0:00:01]}  Re1+ {[%clk 0:00:15]} 0-1


[Site "https://www.chess.com"]

[Event "Titled Tuesday Blitz January 03 Early 2023"]
[White "Aghasiyev, Kamal"]
[Black "De Souza Sa, Apolo"]
[WhiteFideId "13402854"]
[BlackFideId "324225390"]
[WhiteElo "2441"]
[BlackElo "1929"]
[Result "1-0"]
[Round "03"]
[TimeControl "180+2"]
[Date "2023.01.03"]
[WhiteClock "0:00:30"]
[BlackClock "0:00:14"]

1. d4 {[%clk 0:02:57]}  Nf6 {[%clk 0:02:48]} 2. c4 {[%clk 0:02:56]}  g6 {[%clk 0:02:48]} 3. Nc3 {[%clk 0:02:56]}  d5 {[%clk 0:02:48]} 4. cxd5 {[%clk 0:02:56]}  Nxd5 {[%clk 0:02:49]} 5. e4 {[%clk 0:02:57]}  Nxc3 {[%clk 0:02:50]} 6. bxc3 {[%clk 0:02:58]}  Bg7 {[%clk 0:02:51]} 7. Nf3 {[%clk 0:02:54]}  c5 {[%clk 0:02:51]} 8. Be3 {[%clk 0:02:55]}  Qa5 {[%clk 0:02:50]} 9. Qd2 {[%clk 0:02:53]}  Nc6 {[%clk 0:02:48]} 10. Rb1 {[%clk 0:02:51]}  O-O {[%clk 0:02:43]} 11. Rb5 {[%clk 0:02:47]}  cxd4 {[%clk 0:02:43]} 12. Rxa5 {[%clk 0:02:35]}  dxe3 {[%clk 0:02:43]} 13. Qxe3 {[%clk 0:02:36]}  Nxa5 {[%clk 0:02:44]} 14. Nd4 {[%clk 0:02:31]}  b6 {[%clk 0:02:34]} 15. Be2 {[%clk 0:02:27]}  e5 {[%clk 0:02:29]} 16. Nb3 {[%clk 0:02:25]}  Nxb3 {[%clk 0:02:14]} 17. axb3 {[%clk 0:02:24]}  Be6 {[%clk 0:02:15]} 18. b4 {[%clk 0:01:52]}  a5 {[%clk 0:01:33]} 19. O-O {[%clk 0:01:48]}  axb4 {[%clk 0:01:31]} 20. cxb4 {[%clk 0:01:49]}  Rfd8 {[%clk 0:01:30]} 21. Qxb6 {[%clk 0:01:42]}  Rd4 {[%clk 0:01:29]} 22. b5 {[%clk 0:01:35]}  Bf8 {[%clk 0:01:19]} 23. h3 {[%clk 0:01:30]}  Bd6 {[%clk 0:01:16]} 24. Rd1 {[%clk 0:01:21]}  Rb8 {[%clk 0:01:12]} 25. Qa5 {[%clk 0:01:13]}  Bb4 {[%clk 0:00:36]} 26. Qa1 {[%clk 0:00:47]}  Rxe4 {[%clk 0:00:27]} 27. Bf1 {[%clk 0:00:40]}  f6 {[%clk 0:00:19]} 28. Qa7 {[%clk 0:00:39]}  Rc8 {[%clk 0:00:16]} 29. Qa6 {[%clk 0:00:30]}  Kf7 {[%clk 0:00:14]} 30. Qb7+ {[%clk 0:00:30]}  Kg8 {[%clk 0:00:14]} 31. Qxe4 {[%clk 0:00:30]} 1-0


[Site "https://www.chess.com"]

[Event "Titled Tuesday Blitz January 03 Early 2023"]
[White "Bodnaruk, Anastasia"]
[Black "Corredor Castellanos, Camilo"]
[WhiteFideId "4181751"]
[BlackFideId "4425871"]
[WhiteElo "2350"]
[BlackElo "1957"]
[Result "1-0"]
[Round "03"]
[TimeControl "180+2"]
[Date "2023.01.03"]
[WhiteClock "0:00:10"]
[BlackClock "0:00:26"]

1. e4 {[%clk 0:03:00]}  c5 {[%clk 0:02:57]} 2. Nc3 {[%clk 0:03:00]}  a6 {[%clk 0:02:57]} 3. g3 {[%clk 0:02:59]}  b5 {[%clk 0:02:57]} 4. Bg2 {[%clk 0:02:59]}  Bb7 {[%clk 0:02:57]} 5. Nge2 {[%clk 0:02:58]}  e6 {[%clk 0:02:45]} 6. d4 {[%clk 0:02:57]}  cxd4 {[%clk 0:02:41]} 7. Nxd4 {[%clk 0:02:58]}  d6 {[%clk 0:02:33]} 8. O-O {[%clk 0:02:57]}  Be7 {[%clk 0:02:34]} 9. Re1 {[%clk 0:02:56]}  b4 {[%clk 0:02:30]} 10. Nd5 {[%clk 0:02:52]}  exd5 {[%clk 0:02:28]} 11. exd5 {[%clk 0:02:52]}  Kf8 {[%clk 0:02:27]} 12. Qe2 {[%clk 0:02:10]}  g6 {[%clk 0:02:19]} 13. Bf4 {[%clk 0:02:01]}  a5 {[%clk 0:02:03]} 14. Nc6 {[%clk 0:01:49]}  Bxc6 {[%clk 0:02:01]} 15. dxc6 {[%clk 0:01:50]}  Qc7 {[%clk 0:02:01]} 16. Qe4 {[%clk 0:01:26]}  g5 {[%clk 0:01:42]} 17. Qd4 {[%clk 0:01:10]}  gxf4 {[%clk 0:01:13]} 18. Qxh8 {[%clk 0:01:08]}  Bf6 {[%clk 0:01:14]} 19. Re8+ {[%clk 0:00:47]}  Kxe8 {[%clk 0:01:12]} 20. Qxg8+ {[%clk 0:00:43]}  Ke7 {[%clk 0:01:10]} 21. Bd5 {[%clk 0:00:32]}  Nxc6 {[%clk 0:00:39]} 22. Qxa8 {[%clk 0:00:24]}  Nd4 {[%clk 0:00:36]} 23. Re1+ {[%clk 0:00:23]}  Ne6 {[%clk 0:00:36]} 24. Qg8 {[%clk 0:00:19]}  fxg3 {[%clk 0:00:31]} 25. Bxe6 {[%clk 0:00:14]}  gxf2+ {[%clk 0:00:31]} 26. Kxf2 {[%clk 0:00:15]}  Qxc2+ {[%clk 0:00:30]} 27. Re2 {[%clk 0:00:14]}  Bh4+ {[%clk 0:00:30]} 28. Ke3 {[%clk 0:00:11]}  Qc5+ {[%clk 0:00:28]} 29. Kd3 {[%clk 0:00:10]}  Qb5+ {[%clk 0:00:26]} 30. Bc4+ {[%clk 0:00:10]} 1-0


[Site "https://www.chess.com"]

[Event "Titled Tuesday Blitz January 03 Early 2023"]
[White "Blokhin, Sofia"]
[Black "Mendez Fortes, Eduardo Jesus"]
[WhiteFideId "4508190"]
[BlackFideId "3502376"]
[WhiteElo "2062"]
[BlackElo "2250"]
[Result "0-1"]
[Round "03"]
[TimeControl "180+2"]
[Date "2023.01.03"]
[WhiteClock "0:00:01"]
[BlackClock "0:00:51"]

1. d4 {[%clk 0:03:00]}  Nf6 {[%clk 0:02:58]} 2. c4 {[%clk 0:02:59]}  e6 {[%clk 0:02:57]} 3. Nc3 {[%clk 0:02:57]}  Bb4 {[%clk 0:02:55]} 4. f3 {[%clk 0:02:57]}  c5 {[%clk 0:02:54]} 5. a3 {[%clk 0:02:53]}  Bxc3+ {[%clk 0:02:52]} 6. bxc3 {[%clk 0:02:52]}  d6 {[%clk 0:02:52]} 7. e4 {[%clk 0:02:41]}  b6 {[%clk 0:02:52]} 8. Be3 {[%clk 0:02:37]}  Nc6 {[%clk 0:02:51]} 9. Bd3 {[%clk 0:02:24]}  Na5 {[%clk 0:02:50]} 10. Ne2 {[%clk 0:02:18]}  Ba6 {[%clk 0:02:49]} 11. e5 {[%clk 0:01:49]}  dxe5 {[%clk 0:02:38]} 12. dxe5 {[%clk 0:01:48]}  Nd7 {[%clk 0:02:34]} 13. Be4 {[%clk 0:01:46]}  Rc8 {[%clk 0:02:34]} 14. f4 {[%clk 0:01:35]}  Bxc4 {[%clk 0:02:21]} 15. O-O {[%clk 0:01:29]}  Qc7 {[%clk 0:02:13]} 16. Rf3 {[%clk 0:01:17]}  g6 {[%clk 0:02:10]} 17. h4 {[%clk 0:01:11]}  h5 {[%clk 0:02:09]} 18. Rg3 {[%clk 0:01:07]}  Rd8 {[%clk 0:01:56]} 19. Qe1 {[%clk 0:01:03]}  Nb8 {[%clk 0:01:50]} 20. Nc1 {[%clk 0:00:49]}  Nbc6 {[%clk 0:01:48]} 21. Rg5 {[%clk 0:00:46]}  Bd5 {[%clk 0:01:46]} 22. Bc2 {[%clk 0:00:34]}  Nc4 {[%clk 0:01:43]} 23. Bf2 {[%clk 0:00:31]}  Qe7 {[%clk 0:01:39]} 24. Ba4 {[%clk 0:00:26]}  a6 {[%clk 0:01:34]} 25. Nd3 {[%clk 0:00:22]}  Rd7 {[%clk 0:01:10]} 26. Rb1 {[%clk 0:00:22]}  Kd8 {[%clk 0:01:08]} 27. g4 {[%clk 0:00:15]}  Kc7 {[%clk 0:01:05]} 28. gxh5 {[%clk 0:00:10]}  Rxh5 {[%clk 0:01:03]} 29. Bb3 {[%clk 0:00:07]}  Rd8 {[%clk 0:01:01]} 30. Bxc4 {[%clk 0:00:07]}  Bxc4 {[%clk 0:01:01]} 31. Nb2 {[%clk 0:00:07]}  Bd3 {[%clk 0:00:59]} 32. Nxd3 {[%clk 0:00:06]}  Rxd3 {[%clk 0:01:00]} 33. Qe2 {[%clk 0:00:06]}  Rxg5+ {[%clk 0:00:57]} 34. hxg5 {[%clk 0:00:06]}  Qd7 {[%clk 0:00:57]} 35. a4 {[%clk 0:00:04]}  Qd5 {[%clk 0:00:53]} 36. a5 {[%clk 0:00:04]}  Nxa5 {[%clk 0:00:52]} 37. Rb2 {[%clk 0:00:01]}  Nc4 {[%clk 0:00:52]} 38. Ra2 {[%clk 0:00:01]}  Kb7 {[%clk 0:00:51]} 0-1


[Site "https://www.chess.com"]

[Event "Titled Tuesday Blitz January 03 Early 2023"]
[White "Melikhov, Evgeny V."]
[Black "Bikuzhin, Maksim"]
[WhiteFideId "4122046"]
[BlackFideId "24128015"]
[WhiteElo "2269"]
[BlackElo "2279"]
[Result "0-1"]
[Round "03"]
[TimeControl "180+2"]
[Date "2023.01.03"]
[WhiteClock "0:00:01"]
[BlackClock "0:00:39"]

1. d4 {[%clk 0:03:00]}  Nf6 {[%clk 0:02:59]} 2. c4 {[%clk 0:03:00]}  e6 {[%clk 0:02:59]} 3. Nc3 {[%clk 0:03:00]}  d5 {[%clk 0:02:59]} 4. cxd5 {[%clk 0:02:59]}  Nxd5 {[%clk 0:02:59]} 5. e4 {[%clk 0:02:59]}  Nxc3 {[%clk 0:02:58]} 6. bxc3 {[%clk 0:02:59]}  c5 {[%clk 0:02:56]} 7. Nf3 {[%clk 0:03:00]}  cxd4 {[%clk 0:02:56]} 8. cxd4 {[%clk 0:03:01]}  Bb4+ {[%clk 0:02:57]} 9. Bd2 {[%clk 0:03:01]}  Bxd2+ {[%clk 0:02:57]} 10. Qxd2 {[%clk 0:03:02]}  O-O {[%clk 0:02:55]} 11. Bd3 {[%clk 0:03:00]}  b6 {[%clk 0:02:55]} 12. O-O {[%clk 0:03:00]}  Bb7 {[%clk 0:02:47]} 13. Rfe1 {[%clk 0:02:58]}  Nd7 {[%clk 0:02:47]} 14. Rad1 {[%clk 0:02:56]}  Re8 {[%clk 0:02:45]} 15. e5 {[%clk 0:02:32]}  Bxf3 {[%clk 0:02:42]} 16. gxf3 {[%clk 0:02:31]}  Rc8 {[%clk 0:02:38]} 17. f4 {[%clk 0:02:21]}  Nf8 {[%clk 0:02:36]} 18. Be4 {[%clk 0:02:18]}  g6 {[%clk 0:02:29]} 19. d5 {[%clk 0:02:14]}  exd5 {[%clk 0:02:29]} 20. Qxd5 {[%clk 0:02:13]}  Qh4 {[%clk 0:02:28]} 21. f5 {[%clk 0:01:44]}  Rcd8 {[%clk 0:02:28]} 22. Qb3 {[%clk 0:01:20]}  Rxd1 {[%clk 0:02:12]} 23. Qxd1 {[%clk 0:01:14]}  Rxe5 {[%clk 0:02:11]} 24. Qd4 {[%clk 0:01:03]}  Qe7 {[%clk 0:01:53]} 25. fxg6 {[%clk 0:00:55]}  hxg6 {[%clk 0:01:52]} 26. Re3 {[%clk 0:00:52]}  Rg5+ {[%clk 0:01:32]} 27. Rg3 {[%clk 0:00:48]}  Ne6 {[%clk 0:01:31]} 28. Qc3 {[%clk 0:00:32]}  Nf4 {[%clk 0:01:21]} 29. Qc8+ {[%clk 0:00:31]}  Kg7 {[%clk 0:01:20]} 30. Rxg5 {[%clk 0:00:23]}  Qxg5+ {[%clk 0:01:19]} 31. Kf1 {[%clk 0:00:23]}  Qe5 {[%clk 0:01:14]} 32. f3 {[%clk 0:00:11]}  Qa1+ {[%clk 0:01:11]} 33. Kf2 {[%clk 0:00:11]}  Qxa2+ {[%clk 0:01:11]} 34. Kg3 {[%clk 0:00:10]}  Nh5+ {[%clk 0:01:08]} 35. Kh3 {[%clk 0:00:08]}  Qb2 {[%clk 0:00:56]} 36. Qd7 {[%clk 0:00:04]}  Nf4+ {[%clk 0:00:53]} 37. Kg3 {[%clk 0:00:04]}  Qe5 {[%clk 0:00:50]} 38. Qxa7 {[%clk 0:00:02]}  b5 {[%clk 0:00:49]} 39. Kf2 {[%clk 0:00:02]}  b4 {[%clk 0:00:46]} 40. Qb7 {[%clk 0:00:02]}  Qb2+ {[%clk 0:00:41]} 41. Kg3 {[%clk 0:00:03]}  Ne2+ {[%clk 0:00:41]} 42. Kh3 {[%clk 0:00:02]}  b3 {[%clk 0:00:40]} 43. Bd5 {[%clk 0:00:02]}  Nf4+ {[%clk 0:00:39]} 44. Kg3 {[%clk 0:00:02]}  Nxd5 {[%clk 0:00:39]} 45. Qxd5 {[%clk 0:00:03]}  Qc3 {[%clk 0:00:39]} 46. Qb7 {[%clk 0:00:01]}  b2 {[%clk 0:00:39]} 47. h4 {[%clk 0:00:01]}  Qe1+ {[%clk 0:00:39]} 0-1


[Site "https://www.chess.com"]

[Event "Titled Tuesday Blitz January 03 Early 2023"]
[White "Mei, Austin"]
[Black "Jiganchine, Roman"]
[WhiteFideId "30948479"]
[BlackFideId "2603667"]
[WhiteElo "2218"]
[BlackElo "2205"]
[Result "1-0"]
[Round "03"]
[TimeControl "180+2"]
[Date "2023.01.03"]
[WhiteClock "0:01:13"]
[BlackClock "0:00:04"]

1. e4 {[%clk 0:03:00]}  c6 {[%clk 0:02:59]} 2. d4 {[%clk 0:02:56]}  d5 {[%clk 0:02:59]} 3. e5 {[%clk 0:02:56]}  Bf5 {[%clk 0:02:59]} 4. h4 {[%clk 0:02:57]}  h5 {[%clk 0:02:57]} 5. Bd3 {[%clk 0:02:57]}  Bxd3 {[%clk 0:02:54]} 6. Qxd3 {[%clk 0:02:58]}  Qa5+ {[%clk 0:02:51]} 7. Nd2 {[%clk 0:02:58]}  e6 {[%clk 0:02:51]} 8. Nf3 {[%clk 0:02:58]}  Qa6 {[%clk 0:02:49]} 9. c4 {[%clk 0:02:57]}  Ne7 {[%clk 0:02:47]} 10. O-O {[%clk 0:02:57]}  Nf5 {[%clk 0:02:47]} 11. b3 {[%clk 0:02:56]}  Be7 {[%clk 0:02:43]} 12. g3 {[%clk 0:02:56]}  Nd7 {[%clk 0:02:38]} 13. Bb2 {[%clk 0:02:48]}  O-O {[%clk 0:02:37]} 14. Kg2 {[%clk 0:02:47]}  Rfd8 {[%clk 0:02:33]} 15. Qc2 {[%clk 0:02:44]}  Rac8 {[%clk 0:02:31]} 16. c5 {[%clk 0:02:43]}  b6 {[%clk 0:02:30]} 17. b4 {[%clk 0:02:43]}  f6 {[%clk 0:01:58]} 18. exf6 {[%clk 0:02:42]}  Bxf6 {[%clk 0:01:57]} 19. Rfe1 {[%clk 0:02:37]}  Re8 {[%clk 0:01:47]} 20. Nb3 {[%clk 0:02:34]}  Qc4 {[%clk 0:01:40]} 21. Qd2 {[%clk 0:02:05]}  bxc5 {[%clk 0:01:39]} 22. bxc5 {[%clk 0:02:04]}  Rb8 {[%clk 0:01:04]} 23. Rac1 {[%clk 0:02:04]}  Qb4 {[%clk 0:01:00]} 24. Bc3 {[%clk 0:02:03]}  Qa4 {[%clk 0:00:57]} 25. Re2 {[%clk 0:01:58]}  Nf8 {[%clk 0:00:44]} 26. Rce1 {[%clk 0:01:56]}  Rb5 {[%clk 0:00:27]} 27. Ng1 {[%clk 0:01:36]}  Qa6 {[%clk 0:00:18]} 28. Nh3 {[%clk 0:01:35]}  e5 {[%clk 0:00:11]} 29. dxe5 {[%clk 0:01:35]}  d4 {[%clk 0:00:09]} 30. exf6 {[%clk 0:01:29]}  Rxe2 {[%clk 0:00:07]} 31. Qxe2 {[%clk 0:01:20]}  dxc3 {[%clk 0:00:07]} 32. Qc4+ {[%clk 0:01:20]}  Kh7 {[%clk 0:00:05]} 33. Ng5+ {[%clk 0:01:20]}  Kg6 {[%clk 0:00:05]} 34. Qf7+ {[%clk 0:01:17]}  Kh6 {[%clk 0:00:05]} 35. fxg7 {[%clk 0:01:16]}  Nh7 {[%clk 0:00:04]} 36. g8=N# {[%clk 0:01:13]} 1-0


[Site "https://www.chess.com"]

[Event "Titled Tuesday Blitz January 03 Early 2023"]
[White "Mihailidis, Anastasios"]
[Black "Dushyant Sharma"]
[WhiteFideId "4205588"]
[BlackFideId "25065130"]
[WhiteElo "2208"]
[BlackElo "2355"]
[Result "0-1"]
[Round "03"]
[TimeControl "180+2"]
[Date "2023.01.03"]
[WhiteClock "0:00:02"]
[BlackClock "0:00:08"]

1. e4 {[%clk 0:03:00]}  d5 {[%clk 0:02:59]} 2. exd5 {[%clk 0:03:00]}  Nf6 {[%clk 0:02:59]} 3. d4 {[%clk 0:02:59]}  Bg4 {[%clk 0:02:58]} 4. f3 {[%clk 0:02:57]}  Bf5 {[%clk 0:02:58]} 5. Bb5+ {[%clk 0:02:56]}  c6 {[%clk 0:02:58]} 6. dxc6 {[%clk 0:02:56]}  Nxc6 {[%clk 0:02:59]} 7. c3 {[%clk 0:02:50]}  e6 {[%clk 0:02:57]} 8. Ne2 {[%clk 0:02:47]}  Bd6 {[%clk 0:02:56]} 9. Bd3 {[%clk 0:02:44]}  Bg6 {[%clk 0:02:55]} 10. O-O {[%clk 0:02:40]}  Qc7 {[%clk 0:02:54]} 11. g3 {[%clk 0:02:36]}  O-O {[%clk 0:02:54]} 12. Bf4 {[%clk 0:02:35]}  e5 {[%clk 0:02:53]} 13. dxe5 {[%clk 0:02:30]}  Nxe5 {[%clk 0:02:54]} 14. Bxg6 {[%clk 0:02:28]}  hxg6 {[%clk 0:02:52]} 15. Kg2 {[%clk 0:02:14]}  Rad8 {[%clk 0:02:50]} 16. Qc2 {[%clk 0:02:14]}  Nc4 {[%clk 0:02:50]} 17. Nd2 {[%clk 0:01:39]}  Bxf4 {[%clk 0:02:18]} 18. Nxc4 {[%clk 0:01:36]}  Bh6 {[%clk 0:02:18]} 19. Qb3 {[%clk 0:01:16]}  Nd5 {[%clk 0:02:09]} 20. Kh1 {[%clk 0:01:04]}  Rfe8 {[%clk 0:02:04]} 21. Nd4 {[%clk 0:01:02]}  a6 {[%clk 0:01:54]} 22. a4 {[%clk 0:00:58]}  Rc8 {[%clk 0:01:47]} 23. Na3 {[%clk 0:00:48]}  Be3 {[%clk 0:01:25]} 24. Qxd5 {[%clk 0:00:44]}  Rcd8 {[%clk 0:01:11]} 25. Qc4 {[%clk 0:00:36]}  Qb6 {[%clk 0:01:10]} 26. b3 {[%clk 0:00:17]}  Bxd4 {[%clk 0:01:09]} 27. cxd4 {[%clk 0:00:17]}  Rxd4 {[%clk 0:01:09]} 28. Qc3 {[%clk 0:00:16]}  Red8 {[%clk 0:01:06]} 29. Nc4 {[%clk 0:00:16]}  Qc5 {[%clk 0:00:59]} 30. Qa5 {[%clk 0:00:12]}  b5 {[%clk 0:00:57]} 31. axb5 {[%clk 0:00:10]}  axb5 {[%clk 0:00:58]} 32. Ne3 {[%clk 0:00:06]}  Rd2 {[%clk 0:00:54]} 33. Ng2 {[%clk 0:00:06]}  Qc2 {[%clk 0:00:48]} 34. Rg1 {[%clk 0:00:07]}  Qb2 {[%clk 0:00:38]} 35. Qb4 {[%clk 0:00:06]}  Rxg2 {[%clk 0:00:38]} 36. Rxg2 {[%clk 0:00:05]}  Qxa1+ {[%clk 0:00:38]} 37. Rg1 {[%clk 0:00:05]}  Qb2 {[%clk 0:00:33]} 38. Qxb5 {[%clk 0:00:02]}  Rd2 {[%clk 0:00:30]} 39. Qb8+ {[%clk 0:00:03]}  Kh7 {[%clk 0:00:30]} 40. g4 {[%clk 0:00:03]}  Qc3 {[%clk 0:00:23]} 41. Qg3 {[%clk 0:00:04]}  Qxb3 {[%clk 0:00:21]} 42. Re1 {[%clk 0:00:04]}  Qb5 {[%clk 0:00:14]} 43. Kg1 {[%clk 0:00:01]}  Qc5+ {[%clk 0:00:13]} 44. Kh1 {[%clk 0:00:01]}  Qc6 {[%clk 0:00:13]} 45. Qh3+ {[%clk 0:00:02]}  Kg8 {[%clk 0:00:12]} 46. Qg3 {[%clk 0:00:02]}  Rd3 {[%clk 0:00:12]} 47. Kg2 {[%clk 0:00:03]}  Rd8 {[%clk 0:00:10]} 48. Kh1 {[%clk 0:00:03]}  Ra8 {[%clk 0:00:08]} 49. Kg2 {[%clk 0:00:03]}  g5 {[%clk 0:00:07]} 50. h4 {[%clk 0:00:03]}  gxh4 {[%clk 0:00:07]} 51. Qxh4 {[%clk 0:00:03]}  Ra2+ {[%clk 0:00:07]} 52. Kg3 {[%clk 0:00:03]}  Qc7+ {[%clk 0:00:08]} 53. f4 {[%clk 0:00:02]}  Qc3+ {[%clk 0:00:07]} 54. Re3 {[%clk 0:00:02]}  Qxe3# {[%clk 0:00:08]} 0-1


[Site "https://www.chess.com"]